lending/lending_fUSD_20240219
["ID","MTS","AMOUNT","RATE_DAILY","PERIOD"]
[314512210,1708385437827,-6316.1128401,0.00036298,4]
[314512211,1708385437839,-618.42578416,0.00036298,4]
[314512212,1708385437921,-778.37224676,0.00036298,4]
[314512213,1708385437931,-299.99,0.00036298,30]
[314512214,1708385437941,-414.3,0.00036298,2]
[314512215,1708385437951,-499.99,0.00036298,2]
[314512216,1708385437960,-6350.24,0.00036298,2]
[314512217,1708385437970,-198.7,0.00038097,2]
[314512218,1708385437979,-396.85,0.000382,2]
[314512219,1708385437988,-250.0,0.00038216,2]
[314512220,1708385437997,-150.0,0.00038234,2]
[314512221,1708385438007,-2000.0,0.0003825,2]
[314512222,1708385438016,-2151.76,0.00038254,2]
[314512223,1708385438026,-155.88,0.00038289,2]
[314512224,1708385438037,-154.7,0.00038356,2]
[314512225,1708385438046,-460.14,0.00038475,2]
[314512226,1708385438056,-582.62,0.00038546,2]
[314512227,1708385438065,-400.0,0.00038665,2]
[314512228,1708385438075,-411.77,0.00038796,120]
[314512229,1708385438085,-250.0,0.000388,111]
[314512230,1708385438094,-263.08348265,0.00038899,5]
[314512231,1708385438103,-23900.0,0.0003899,2]
[314512232,1708385438113,-155.21326694,0.00039087,2]
[314512233,1708385438123,-214.46,0.00039093,2]
[314512235,1708385438132,-3682.0334,0.00039184,2]
[314512237,1708385438141,-13062.2972,0.00039184,2]
[314512239,1708385438151,-3024.37881343,0.00039284,14]
[314512240,1708385438160,-644.16920974,0.00039284,13]
[314512242,1708385438173,-219.84045702,0.00039284,13]
[314512243,1708385438184,-337.98742079,0.00039284,14]
[314512245,1708385438193,-3175.56,0.00039321,4]
[314512246,1708385438202,-250.0,0.00039628,2]
[314512247,1708385438212,-1929.066812,0.000407,34]
[314512248,1708385438221,-549.38146288,0.0004071,13]
[314512249,1708385438231,-2500.0,0.00040801,2]
[314512250,1708385438240,-189.04661298,0.00040801,3]
[314512251,1708385438251,-2802.89035114,0.00040801,3]
[314512252,1708385438261,-159.99293366,0.00040801,2]
[314512253,1708385438273,-582.62,0.0004081,2]
[314512254,1708385438285,-296.68593737,0.00040901,3]
[314512255,1708385438294,-150.0,0.00040908,30]
[314512256,1708385438304,-100211.31243862,0.00040908,4]
[314512257,1708385438617,-1558.05745266,0.00040908,4]
[314512258,1708385438634,-12319.78872688,0.00040908,4]
[314512259,1708385438650,-500.0,0.00040908,4]
[314512260,1708385438662,-5627.89633892,0.00040908,4]
[314512292,1708385443000,-14126.2225287,0.00040908,4]
[314512293,1708385443013,-964.88636298,0.00040908,4]
[314512294,1708385443025,-962.28855805,0.00040908,4]
[314512295,1708385443076,-379076.49959319,0.00040908,4]
[314512296,1708385443086,-1991.917289,0.00040908,30]
[314512297,1708385443095,-159.99293366,0.00041172,2]
[314512298,1708385443104,-315.5,0.00041437,2]
[314512299,1708385443112,-600.0,0.00041475,2]
[314512300,1708385443122,-159.99293366,0.00041543,2]
[314512301,1708385443131,-217.94778962,0.00041577,9]
[314512302,1708385443140,-189.04661292,0.00041888,4]
[314512303,1708385443149,-2802.89035111,0.00041888,4]
[314512304,1708385443158,-159.99293366,0.00041913,2]
[314512305,1708385443167,-155.21326694,0.00041979,2]
[314512307,1708385443176,-250.0,0.00041988,2]
[314512308,1708385443186,-690.0,0.00042,5]
[314512309,1708385443199,-151.022088,0.00042148,35]
[314512310,1708385443209,-159.99293366,0.00042284,2]
[314512311,1708385443218,-157.022088,0.00042448,36]
[314512312,1708385443227,-159.99293366,0.00042655,2]
[314512313,1708385443237,-157.022088,0.00042748,37]
[314512314,1708385443247,-189.04661292,0.00042975,5]
[314512315,1708385443256,-2802.89035111,0.00042975,5]
[314512316,1708385443266,-5000.0,0.00043,40]
[314512317,1708385443275,-289.0,0.00043,90]
[314512318,1708385443285,-289.0,0.00043014,90]
[314512319,1708385443295,-159.99293366,0.00043026,2]
[314512320,1708385443305,-582.62,0.00043074,2]
[314512321,1708385443314,-157.022088,0.00043148,42]
[314512322,1708385443323,-465.9784,0.00043232,2]
[314512323,1708385443333,-510.30003893,0.00043291,2]
[314512324,1708385443342,-153.19144062,0.00043321,19]
[314512325,1708385443352,-1019.13,0.00043331,2]
[314512326,1708385443361,-67602.3957,0.00043332,2]
[314512327,1708385443371,-55992.54717752,0.00043332,2]
[314512331,1708385446109,-530.85968613,0.00040907,4]
[314512332,1708385446120,-429.17809893,0.00040907,4]
[314512333,1708385446131,-46111.66820983,0.00043332,2]
[314512334,1708385446142,-5178.5,0.00043332,2]
[314512335,1708385446202,-0.02878967,0.00040907,4]
[314512336,1708385446443,-607.88508001,0.00040907,4]
[314512337,1708385868691,527180.18978766,0.0002,2]
[314512338,1708386060370,299.286228,0.0002,2]
[314512339,1708386284402,280.65724182,0.0002,2]
[314512340,1708386390835,4873.96259703,0.0002,2]
[314512341,1708386406841,4873.96259703,0.0002,2]
[314512342,1708386423282,4873.96259703,0.0002,2]
[314512343,1708386433838,294.73532267,0.0002,2]
[314512344,1708386441402,4873.96259703,0.0002,2]
[314512345,1708386450542,155.0,0.0002,2]
[314512346,1708386451621,4873.96259703,0.0002,2]
[314512347,1708386471785,4873.96259703,0.0002,2]
[314512348,1708386493628,4978.46134498,0.0002,2]
[314512349,1708386547149,-1338.37101458,0.00025997,2]
[314512350,1708386547173,-223.10371255,0.00025998,2]
[314512351,1708386547192,-2015.15211595,0.00026,2]
[314512352,1708386547219,-166.48491865,0.000264,2]
[314512353,1708386547239,-232.99807547,0.000265,2]
[314512354,1708386549100,-100.00192453,0.000265,2]
[314512355,1708386549122,-909.07266442,0.00031014,2]
[314512356,1708386549145,-166.48491861,0.00031015,2]
[314512357,1708386549170,-336.0,0.000326,2]
[314512358,1708386549188,-442.38307178,0.00033398,4]
[314512359,1708386549208,-2265.0,0.000335,2]
[314512360,1708386549228,-1427.82,0.000339,2]
[314512361,1708386549248,-9586.0,0.000339,2]
[314512362,1708386549268,-2258.859634,0.0003452,2]
[314512363,1708386549288,-504.568269,0.0003452,2]
[314512364,1708386549308,-499.99,0.0003452,2]
[314512365,1708386549327,-2976.65951373,0.00034794,2]
[314512366,1708386553095,-2815.0637,0.000259,2]
[314512367,1708386553116,-411.62993727,0.00034794,2]
[314512368,1708386553137,-756.852403,0.00034794,2]
[314512369,1708386553160,-4517.719268,0.00034931,2]
[314512370,1708386553184,-1009.136538,0.00034931,2]
[314512371,1708386553203,-1044.35236561,0.00035067,2]
[314512372,1708386553225,-5647.149085,0.00035068,2]
[314512373,1708386553247,-1261.420672,0.00035068,2]
[314512374,1708386553267,-2037.05,0.00035068,2]
[314512375,1708386553287,-3173.97218889,0.00035332,2]
[314512376,1708386553307,-7906.008719,0.00035342,2]
[314512377,1708386553328,-1765.988942,0.00035342,2]
[314512378,1708386553349,-166.48491861,0.0003563,2]
[314512379,1708386553369,-549.29,0.00035656,2]
[314512380,1708386553389,-228.59647435,0.00036725,7]
[314512381,1708386553409,-514.89739082,0.00036816,7]
[314512382,1708386553428,-250.0,0.00037303,2]
[314512383,1708386553449,-1793.13,0.00037493,2]
[314512384,1708386553469,-2000.0,0.00037493,2]
[314512385,1708386553488,-250.0,0.00037576,2]
[314512386,1708386553508,-177.02,0.00037576,2]
[314512387,1708386553528,-157.24,0.00037586,2]
[314512388,1708386553550,-320.0,0.00037652,2]
[314512389,1708386553570,-150.0,0.00037696,2]
[314512390,1708386553589,-250.0,0.00037709,111]
[314512391,1708386553609,-277.19,0.00037752,2]
[314512392,1708386553632,-156.45,0.00037868,2]
[314512393,1708386553652,-23900.0,0.00037896,2]
[314512394,1708386553675,-549.29,0.0003792,2]
[314512395,1708386553694,-150.0,0.00038,30]
[314512396,1708386553713,-990.16417266,0.00038355,4]
[314512397,1708386553735,-154.7,0.00038356,2]
[314512398,1708386553767,-262.68,0.000391,3]
[314512399,1708386553789,-262.68,0.000391,3]
[314512400,1708386553818,-262.68,0.000391,3]
[314512401,1708386553840,-262.68,0.000391,3]
[314512402,1708386553862,-262.68,0.000391,3]
[314512403,1708386553883,-262.68,0.000391,3]
[314512404,1708386553904,-262.68,0.000391,3]
[314512405,1708386553927,-262.68,0.000391,3]
[314512406,1708386553951,-262.68,0.000391,3]
[314512407,1708386553975,-262.68,0.000391,3]
[314512408,1708386553999,-262.68,0.000391,3]
[314512409,1708386554021,-262.68,0.000391,3]
[314512410,1708386554044,-262.68,0.000391,3]
[314512411,1708386554066,-262.68,0.000391,3]
[314512412,1708386554088,-262.68,0.000391,3]
[314512413,1708386554110,-262.68,0.000391,3]
[314512414,1708386554132,-262.68,0.000391,3]
[314512415,1708386554154,-262.68,0.000391,3]
[314512416,1708386554179,-262.68,0.000391,3]
[314512417,1708386554201,-262.68,0.000391,3]
[314512418,1708386554223,-205.0,0.000391,2]
[314512419,1708386554247,-6623.65443303,0.00039299,14]
[314512420,1708386554272,-473.79340734,0.00039309,14]
[314512421,1708386560446,1707.77532662,0.0002,2]
[314512422,1708386561135,-200.0,0.00039594,2]
[314512423,1708386561156,-177.53,0.00039808,2]
[314512424,1708386561178,-74.22266622,0.00039841,2]
[314512436,1708386631990,-909.07266442,0.00039714,5]
[314512437,1708386632000,-937.47454614,0.00039715,2]
[314512438,1708386632013,-489.61545386,0.00039715,2]
[314512439,1708386632023,-1458.69,0.00039715,2]
[314512440,1708386632032,-11371.21198417,0.00039715,2]
[314512441,1708386632045,-667.61891395,0.00039715,2]
[314512442,1708386632068,-604.7260143,0.00039715,2]
[314512443,1708386632093,-11256.44308758,0.00039715,2]
[314512444,1708386632102,-82.22733378,0.00039841,2]
[314512445,1708386632112,-374.990744,0.00039841,4]
[314512446,1708386632189,-820.45198463,0.00039841,4]
[314512447,1708386632202,-474.2,0.00039909,2]
[314512448,1708386632211,-170.26,0.00039965,2]
[314512449,1708386632220,-1439.46,0.00040061,2]
[314512450,1708386632230,-635.917789,0.00040122,2]
[314512451,1708386632239,-549.29,0.00040184,2]
[314512452,1708386632248,-166.48491861,0.00040244,2]
[314512453,1708386632257,-177.53,0.00040356,2]
[314512454,1708386632267,-177.02,0.00040357,2]
[314512455,1708386632275,-680.0,0.00040445,2]
[314512456,1708386632287,-151.022088,0.00040448,2]
[314512457,1708386632296,-151.022088,0.00040548,6]
[314512458,1708386632305,-2091.6287,0.00040608,2]
[314512459,1708386632316,-1962.02324584,0.00040608,3]
[314512460,1708386632326,-591.64157552,0.00040608,12]
[314512461,1708386632337,-159.99293366,0.00040608,2]
[314512462,1708386632347,-253.37876277,0.00040608,3]
[314512464,1708386632355,-418.50948102,0.00040608,2]
[314512466,1708386632364,-152.95690751,0.00040608,9]
[314512468,1708386632374,-300.0,0.00040701,2]
[314512469,1708386632383,-1131.61619732,0.00040706,4]
[314512471,1708386632392,-1131.61619732,0.00040706,4]
[314512473,1708386632402,-2055.08025271,0.00040706,4]
[314512476,1708386632411,-546.52686117,0.00040707,5]
[314512478,1708386632420,-1691.0472,0.00040708,2]
[314512481,1708386632429,-2679.99797465,0.00040708,2]
[314512485,1708386632441,-9396.69471139,0.00040708,2]
[314512489,1708386632452,-20708.68016,0.00040708,2]
[314512494,1708386632476,-322.16141251,0.00040708,2]
[314512497,1708386632487,-26630.77584619,0.00040708,2]
[314512506,1708386632532,-10985.51085966,0.00040708,2]
[314512533,1708386638153,-26480.39047106,0.00040708,2]
[314512534,1708386638167,-4042.566642,0.00040708,2]
[314512535,1708386638179,-7442.804616,0.00040708,2]
[314512536,1708386638227,-5677.97170208,0.00040708,2]
[314512537,1708386638240,-1108.77575039,0.00040708,2]
[314512538,1708386638252,-1320.547675,0.00040708,2]
[314512539,1708386638286,-474.42609132,0.00040708,2]
[314512540,1708386638311,-383318.08678775,0.00040708,2]
[314512541,1708386638321,-245000.0,0.00040708,2]
[314512542,1708386638330,-1413.679,0.00040708,2]
[314512543,1708386638339,-29764.4537,0.00040708,120]
[314512544,1708386638349,-153.15099192,0.00040788,9]
[314512546,1708386638358,-69324.4382401,0.00040798,6]
[314512548,1708386638368,-417.1433,0.00040801,2]
[314512550,1708386638377,-1000.0,0.00040807,2]
[314512551,1708386638386,-240.20674648,0.00040807,4]
[314512552,1708386638395,-100000.0,0.00040808,2]
[314512553,1708386638404,-300.0,0.00040878,34]
[314512555,1708386638413,-300.0,0.00040878,35]
[314512557,1708386638422,-150.0,0.00040878,30]
[314512558,1708386638431,-300.0,0.00040878,30]
[314512559,1708386638441,-177.53,0.00040904,2]
[314512560,1708386638450,-431.13698878,0.00040907,4]
[314512561,1708386638460,-300.0,0.00041,30]
[314512562,1708386638469,-206.0,0.00041165,10]
[314512563,1708386638484,-262.68,0.000413,4]
[314512564,1708386638493,-262.68,0.000413,4]
[314512565,1708386638503,-262.68,0.000413,4]
[314512566,1708386638513,-262.68,0.000413,4]
[314512567,1708386638524,-262.68,0.000413,4]
[314512568,1708386638534,-262.68,0.000413,4]
[314512569,1708386638545,-262.68,0.000413,4]
[314512570,1708386638554,-262.68,0.000413,4]
[314512571,1708386638563,-262.68,0.000413,4]
[314512572,1708386638572,-262.68,0.000413,4]
[314512573,1708386638580,-262.68,0.000413,4]
[314512574,1708386638591,-262.68,0.000413,4]
[314512575,1708386638600,-262.68,0.000413,4]
[314512576,1708386638610,-262.68,0.000413,4]
[314512577,1708386638619,-262.68,0.000413,4]
[314512578,1708386638630,-262.68,0.000413,4]
[314512579,1708386638639,-262.68,0.000413,4]
[314512580,1708386638650,-262.68,0.000413,4]
[314512581,1708386638659,-262.68,0.000413,4]
[314512582,1708386638670,-262.68,0.000413,4]
[314512583,1708386638680,-157.24,0.00041448,2]
[314512584,1708386638690,-177.53,0.00041452,2]
[314512585,1708386638699,-258.5543662,0.00041522,9]
[314512586,1708386638709,-202.73792538,0.00041522,9]
[314512587,1708386638718,-643.90778749,0.00041568,9]
[314512588,1708386638727,-181.63,0.00041632,2]
[314512589,1708386638737,-1962.02324577,0.00041637,3]
[314512590,1708386638747,-253.37876269,0.0004164,3]
[314512591,1708386638756,-159.99293366,0.00041676,2]
[314512592,1708386638765,-565.69,0.00041902,2]
[314512593,1708386638774,-352.71,0.00042,2]
[314512594,1708386638784,-320.0,0.00042359,2]
[314512595,1708386638794,-549.29,0.00042448,2]
[314512596,1708386638803,-173.022088,0.00042498,29]
[314512597,1708386638813,-1962.02324577,0.00042665,4]
[314512598,1708386638822,-253.37876269,0.00042673,4]
[314512599,1708386638831,-5788.40490352,0.00042705,10]
[314512600,1708386638841,-824.9,0.0004274,2]
[314512601,1708386638850,-159.99293366,0.00042744,2]
[314512602,1708386638859,-173.022088,0.00042798,30]
[314512603,1708386638868,-2000.0,0.00043,30]
[314512604,1708386638877,-294.0,0.00043,90]
[314512605,1708386638886,-294.0,0.00043014,90]
[314512606,1708386638895,-181.63,0.0004302,2]
[314512607,1708386638904,-360.0,0.00043115,12]
[314512608,1708386638913,-1842.29514274,0.00043132,17]
[314512609,1708386639192,-177.02,0.00043138,2]
[314512610,1708386639207,-157.022088,0.00043198,42]
[314512611,1708386639218,-10769.6754,0.000432,2]
[314512612,1708386639228,-2360.3652,0.000432,2]
[314512613,1708386639236,-989.4925,0.00043232,2]
[314512614,1708386639245,-33180.5589,0.00043232,2]
[314512615,1708386639256,-500.0,0.00043232,2]
[314512616,1708386639266,-1000.0,0.000433,2]
[314512617,1708386639279,-209.96580134,0.0004333,120]
[314512618,1708386639290,-214.99787,0.00043332,18]
[314512619,1708386639303,-69324.4382401,0.0004339,10]
[314512620,1708386639313,-155.03318318,0.00043398,4]
[314512621,1708386639322,-262.68,0.000434,4]
[314512622,1708386639332,-262.68,0.000434,4]
[314512623,1708386639341,-262.68,0.000434,4]
[314512624,1708386639351,-262.68,0.000434,4]
[314512625,1708386639361,-262.68,0.000434,4]
[314512626,1708386639370,-262.68,0.000434,4]
[314512627,1708386639380,-262.68,0.000434,4]
[314512628,1708386639389,-262.68,0.000434,4]
[314512629,1708386639399,-262.68,0.000434,4]
[314512630,1708386639408,-262.68,0.000434,4]
[314512631,1708386639418,-262.68,0.000434,4]
[314512632,1708386639428,-262.68,0.000434,4]
[314512633,1708386639437,-262.68,0.000434,4]
[314512634,1708386639446,-262.68,0.000434,4]
[314512635,1708386639455,-262.68,0.000434,4]
[314512636,1708386639465,-262.68,0.000434,4]
[314512637,1708386639475,-262.68,0.000434,4]
[314512638,1708386639484,-262.68,0.000434,4]
[314512639,1708386639493,-262.68,0.000434,4]
[314512640,1708386639502,-262.68,0.000434,4]
[314512641,1708386639511,-151.0,0.000434,14]
[314512642,1708386639522,-151.0,0.000434,7]
[314512643,1708386639531,-151.0,0.000434,14]
[314512644,1708386639540,-2402.26151,0.000434,14]
[314512645,1708386639553,-151.0,0.000434,14]
[314512646,1708386639562,-2402.26151,0.000434,14]
[314512647,1708386639573,-151.0,0.000434,14]
[314512648,1708386639582,-151.0,0.000434,14]
[314512649,1708386639591,-151.0,0.000434,14]
[314512650,1708386639600,-189.222989,0.000434,14]
[314512651,1708386639609,-151.0,0.000434,14]
[314512652,1708386639620,-156.351884,0.000434,14]
[314512653,1708386639629,-189.222989,0.000434,14]
[314512654,1708386639641,-152.322311,0.000434,14]
[314512655,1708386639651,-151.0,0.000434,14]
[314512656,1708386639661,-151.0,0.000434,14]
[314512657,1708386639673,-151.472925,0.000434,14]
[314512658,1708386639683,-73697.95708035,0.000434,10]
[314512659,1708386639693,-1211.03521878,0.00043421,4]
[314512660,1708386639703,-173.022088,0.00043448,43]
[314512661,1708386639712,-300.0,0.000435,30]
[314512662,1708386639721,-800.0,0.00043501,10]
[314512663,1708386639731,-838.62,0.00043562,2]
[314512664,1708386639740,-154.22,0.00043562,2]
[314512665,1708386639749,-436.26,0.00043562,2]
[314512666,1708386639758,-1842.29514265,0.00043685,18]
[314512667,1708386639769,-1962.02324577,0.00043694,5]
[314512668,1708386639778,-253.37876269,0.00043705,5]
[314512669,1708386639787,-157.022088,0.00043748,42]
[314512670,1708386639799,-150.0,0.00043749,2]
[314512671,1708386639811,-150.0,0.000438,2]
[314512672,1708386639819,-151.0,0.000438,14]
[314512673,1708386639832,-151.0,0.000438,14]
[314512674,1708386639842,-151.0,0.000438,14]
[314512675,1708386639851,-151.0,0.000438,14]
[314512676,1708386639862,-151.0,0.000438,14]
[314512677,1708386639873,-151.0,0.000438,14]
[314512678,1708386639883,-151.0,0.000438,14]
[314512679,1708386639895,-151.0,0.000438,14]
[314512680,1708386639905,-151.0,0.000438,14]
[314512681,1708386639914,-151.0,0.000438,14]
[314512682,1708386639923,-2000.0,0.000438,2]
[314512683,1708386639934,-159.99293366,0.00043812,2]
[314512684,1708386639943,-900.0,0.00043835,2]
[314512685,1708386639953,-276.0,0.00043836,10]
[314512686,1708386639962,-332.4,0.00043836,15]
[314512687,1708386639973,-2281.0,0.00043836,30]
[314512688,1708386639983,-151.0,0.00043836,14]
[314512689,1708386639992,-151.0,0.00043836,14]
[314512690,1708386640002,-151.0,0.00043836,14]
[314512691,1708386640012,-164.076039,0.00043836,14]
[314512692,1708386640021,-155.68245,0.00043836,14]
[314512693,1708386640030,-151.0,0.00043836,14]
[314512694,1708386640040,-151.0,0.00043836,14]
[314512695,1708386640051,-151.0,0.00043836,14]
[314512696,1708386640061,-1192.0,0.000439,7]
[314512697,1708386640072,-1000.0,0.000439,7]
[314512698,1708386640082,-214.99788,0.0004393,21]
[314512699,1708386640092,-173.022088,0.00043948,35]
[314512700,1708386640102,-300.0,0.00044,5]
[314512701,1708386640112,-150.0,0.00044,2]
[314512702,1708386640121,-200.0,0.00044045,20]
[314512703,1708386640130,-800.0,0.00044045,20]
[314512704,1708386640140,-200.0,0.00044045,30]
[314512705,1708386640149,-500.0,0.00044045,30]
[314512706,1708386640160,-200.0,0.00044045,30]
[314512707,1708386640169,-173.022088,0.00044048,36]
[314512708,1708386640178,-173.022088,0.00044148,43]
[314512709,1708386640188,-1842.29514265,0.00044238,19]
[314512710,1708386640199,-173.022088,0.00044248,36]
[314512711,1708386640208,-151.0,0.00044298,2]
[314512712,1708386640217,-151.0,0.00044298,14]
[314512713,1708386640227,-238.906948,0.00044298,14]
[314512714,1708386640236,-151.0,0.00044298,14]
[314512715,1708386640246,-151.0,0.00044298,14]
[314512716,1708386640255,-206.0,0.00044304,11]
[314512717,1708386640265,-173.022088,0.00044348,36]
[314512718,1708386640274,-419.31,0.00044384,2]
[314512719,1708386640284,-181.63,0.00044408,2]
[314512720,1708386640293,-173.022088,0.00044448,42]
[314512721,1708386640304,-248.69869157,0.00044518,4]
[314512722,1708386640314,-154.11964815,0.0004452,2]
[314512723,1708386640324,-167.022088,0.00044548,42]
[314512724,1708386640333,-300.0,0.00044548,5]
[314512725,1708386640342,-800.0,0.00044588,20]
[314512726,1708386640351,-157.022088,0.00044648,37]
[314512727,1708386640360,-239.48423977,0.00044687,2]
[314512728,1708386640370,-150.0,0.00044688,2]
[314512729,1708386640380,-150.0,0.00044689,2]
[314512730,1708386640390,-811.37989651,0.0004469,5]
[314512731,1708386640399,-150.0,0.0004469,2]
[314512732,1708386640410,-150.0,0.00044692,2]
[314512733,1708386640419,-150.0,0.00044695,2]
[314512734,1708386640428,-150.0,0.00044698,2]
[314512735,1708386640437,-150.0,0.00044698,2]
[314512736,1708386640447,-300.0,0.00044706,2]
[314512737,1708386640456,-150.0,0.00044707,2]
[314512738,1708386640465,-150.0,0.00044707,2]
[314512739,1708386640475,-150.0,0.00044709,2]
[314512740,1708386640484,-549.29,0.00044712,2]
[314512741,1708386640493,-69324.4382401,0.00044713,10]
[314512742,1708386640502,-150.0,0.00044719,2]
[314512743,1708386640511,-150.0,0.0004472,2]
[314512744,1708386640521,-1962.02324577,0.00044723,6]
[314512746,1708386640530,-150.0,0.00044723,2]
[314512748,1708386640540,-150.0,0.0004473,2]
[314512750,1708386640550,-150.0,0.00044731,2]
[314512752,1708386640559,-300.0,0.00044734,2]
[314512754,1708386640568,-253.37876269,0.00044738,6]
[314512756,1708386640577,-150.0,0.00044738,2]
[314512758,1708386640587,-150.0,0.00044746,2]
[314512760,1708386640596,-150.0,0.00044746,2]
[314512763,1708386640605,-150.0,0.00044746,2]
[314512764,1708386640614,-150.0,0.00044746,2]
[314512766,1708386640623,-150.0,0.00044747,2]
[314512767,1708386640633,-151.022088,0.00044748,43]
[314512768,1708386640642,-150.0,0.00044749,2]
[314512769,1708386640651,-150.0,0.0004475,2]
[314512770,1708386640660,-150.0,0.00044751,2]
[314512771,1708386640669,-350.28649824,0.00044759,2]
[314512772,1708386640678,-150.0,0.00044761,2]
[314512773,1708386640687,-150.0,0.00044762,2]
[314512774,1708386640696,-150.0,0.00044762,2]
[314512775,1708386640705,-150.0,0.00044763,2]
[314512776,1708386640714,-150.0,0.00044773,2]
[314512777,1708386640723,-300.0,0.00044776,2]
[314512778,1708386640732,-284.148366,0.0004478,14]
[314512779,1708386640742,-196.201987,0.0004478,14]
[314512780,1708386640751,-198.012335,0.0004478,14]
[314512781,1708386640760,-151.0,0.0004478,14]
[314512782,1708386640769,-151.0,0.0004478,14]
[314512783,1708386640779,-151.0,0.0004478,14]
[314512784,1708386640789,-151.0,0.0004478,14]
[314512785,1708386640798,-215.919881,0.0004478,14]
[314512786,1708386640808,-151.0,0.0004478,14]
[314512787,1708386640817,-151.0,0.0004478,14]
[314512788,1708386640826,-151.0,0.0004478,14]
[314512789,1708386640835,-151.0,0.0004478,14]
[314512790,1708386640845,-307.732724,0.0004478,14]
[314512791,1708386640855,-307.732724,0.0004478,14]
[314512792,1708386640865,-151.0,0.0004478,14]
[314512793,1708386640876,-151.0,0.0004478,14]
[314512794,1708386640885,-151.0,0.0004478,14]
[314512795,1708386640896,-150.0,0.00044782,2]
[314512796,1708386640906,-150.0,0.00044784,2]
[314512797,1708386640915,-151.0,0.0004479,14]
[314512798,1708386640924,-171.743619,0.0004479,14]
[314512799,1708386640934,-151.0,0.0004479,14]
[314512800,1708386640943,-151.0,0.0004479,14]
[314512801,1708386640953,-151.0,0.0004479,14]
[314512802,1708386640963,-138648.87648,0.0004479,10]
[314512803,1708386640974,-151.0,0.0004479,14]
[314512804,1708386640983,-151.0,0.0004479,14]
[314512805,1708386640993,-151.0,0.0004479,14]
[314512806,1708386641002,-151.0,0.0004479,14]
[314512807,1708386641011,-151.0,0.0004479,14]
[314512808,1708386641020,-151.0,0.0004479,14]
[314512809,1708386641030,-151.0,0.0004479,14]
[314512810,1708386641039,-151.0,0.0004479,14]
[314512811,1708386641050,-282.509774,0.0004479,14]
[314512812,1708386641059,-151.0,0.0004479,14]
[314512813,1708386641068,-151.0,0.0004479,14]
[314512814,1708386641077,-151.0,0.0004479,14]
[314512815,1708386641087,-2402.26151,0.0004479,14]
[314512816,1708386641096,-151.0,0.0004479,14]
[314512817,1708386641106,-2402.26151,0.0004479,14]
[314512818,1708386641115,-151.0,0.0004479,14]
[314512819,1708386641124,-151.0,0.0004479,14]
[314512820,1708386641133,-151.0,0.0004479,14]
[314512821,1708386641142,-189.222989,0.0004479,14]
[314512822,1708386641151,-151.0,0.0004479,14]
[314512823,1708386641161,-189.222989,0.0004479,14]
[314512824,1708386641170,-151.0,0.0004479,14]
[314512825,1708386641180,-1842.29514265,0.00044791,19]
[314512826,1708386641190,-300.0,0.00044791,2]
[314512827,1708386641201,-182.51508742,0.00044791,2]
[314512828,1708386641211,-150.0,0.00044793,2]
[314512829,1708386641220,-150.0,0.00044796,2]
[314512830,1708386641231,-157.022088,0.00044798,42]
[314512831,1708386641240,-300.0,0.00044798,2]
[314512832,1708386641249,-228.36109416,0.000448,3]